bitfinex/quotes_ETHUSD_20241103
["timestamp","ask_amount","ask_price","bid_price","bid_amount"]
[1730593323394,0.8079,2493.2,2493.1,0.29905322]
[1730593323590,6.43162276,2493.5,2492.9,1.3702]
[1730593323801,6.43162276,2493.5,2493.1,0.29904579]
[1730593324091,7.6860646,2493.5,2493.0,0.12534644]
[1730593324294,7.6860646,2493.5,2493.2,0.55]
[1730593324295,2.42119276,2493.5,2493.2,0.55]
[1730593324479,0.793,2493.5,2493.2,0.55]
[1730593324682,0.793,2493.5,2493.2,1.3448]
[1730593325718,2.42119276,2493.7,2493.2,1.3448]
[1730593325883,2.42119276,2493.7,2493.3,0.29902732]
[1730593326088,2.42119276,2493.7,2493.3,0.29904691]
[1730593326399,2.42119276,2493.7,2493.2,1.3448]
[1730593326588,2.42119276,2493.7,2493.4,0.55]
[1730593326791,2.42119276,2493.7,2493.2,1.3448]
[1730593326991,2.42119276,2493.7,2493.3,0.29904918]
[1730593327190,2.42119276,2493.7,2493.4,0.55]
[1730593327615,2.42119276,2493.7,2493.3,0.55]
[1730593333311,4.52402423,2493.7,2493.3,0.55]
[1730593335949,4.52427738,2493.7,2493.3,0.55]
[1730593339763,1.62819276,2493.7,2493.3,0.55]
[1730593341762,1.62819276,2493.7,2493.3,0.67532922]
[1730593342352,1.62819276,2493.7,2493.3,0.92619783]
[1730593345134,1.62819276,2493.7,2493.3,0.80086861]
[1730593346029,1.62819276,2493.5,2493.3,0.80086861]
[1730593346222,1.62819276,2493.5,2493.3,0.55]
[1730593347550,1.62819276,2493.5,2493.3,0.67533089]
[1730593347759,1.62819276,2493.5,2493.3,0.55]
[1730593347930,1.62819276,2493.5,2493.3,0.67533146]
[1730593348268,1.62819276,2493.5,2493.3,0.55]
[1730593348432,1.62819276,2493.5,2493.3,0.67533097]
[1730593348632,1.62819276,2493.7,2493.3,0.67533097]
[1730593350332,1.62819276,2493.7,2493.5,0.55]
[1730593350753,1.62819276,2493.7,2493.4,0.55]
[1730593351676,4.4935006,2493.9,2493.3,1.3448]
[1730593351878,2.39069276,2493.9,2493.5,0.55]
[1730593352230,4.4935006,2493.9,2493.4,0.6753248]
[1730593352569,2.39069276,2493.9,2493.4,0.55]
[1730593353261,4.4935006,2493.9,2493.4,0.55]
[1730593353470,2.39069276,2493.9,2493.4,0.55]
[1730593354172,8.50310872,2493.9,2493.4,0.55]
[1730593355445,1.62819276,2493.7,2493.4,0.55]
[1730593363086,1.62819276,2493.7,2493.0,3.8351043]
[1730593363087,0.7625,2493.6,2493.2,0.55]
[1730593363297,0.7625,2493.6,2493.4,0.55]
[1730593363654,0.7625,2493.6,2493.3,0.55]
[1730593363855,0.7625,2493.6,2493.4,0.29901113]
[1730593364055,0.7625,2493.6,2493.2,0.55]
[1730593364056,0.7625,2493.6,2493.5,0.55]
[1730593364755,0.7625,2493.6,2493.4,0.55]
[1730593364985,0.7625,2493.6,2493.2,0.55]
[1730593365191,0.7625,2493.6,2493.4,0.55]
[1730593365552,0.7625,2493.6,2493.3,0.6753271]
[1730593365759,0.7625,2493.6,2493.5,0.55]
[1730593365969,0.7625,2493.6,2493.3,0.55]
[1730593366301,0.7625,2493.6,2493.5,0.55]
[1730593366769,0.7625,2493.6,2493.3,0.55]
[1730593366972,0.7625,2493.6,2493.5,0.55]
[1730593367323,1.62819276,2493.7,2493.2,0.55]
[1730593367591,1.62819276,2493.7,2493.4,0.55]
[1730593367958,1.62819276,2493.7,2493.3,0.55]
[1730593368160,1.62819276,2493.7,2493.5,0.55]
[1730593380788,1.62819276,2493.7,2493.3,0.55]
[1730593380991,1.62819276,2493.7,2493.5,0.55]
[1730593381497,1.62819276,2493.7,2493.4,0.55]
[1730593381698,1.62819276,2493.7,2493.5,0.29915739]
[1730593382021,1.62819276,2493.7,2493.6,0.55]
[1730593382824,1.62819276,2493.7,2493.5,0.55]
[1730593382987,1.62819276,2493.7,2493.3,0.55]
[1730593383181,1.62819276,2493.7,2493.4,0.12532435]
[1730593383407,1.62819276,2493.7,2493.5,0.42447646]
[1730593383624,1.62819276,2493.7,2493.6,0.55]
[1730593383818,1.62819276,2493.7,2493.4,0.55]
[1730593383993,1.62819276,2493.7,2493.5,0.29917124]
[1730593384197,1.62819276,2493.7,2493.3,0.55]
[1730593384395,1.62819276,2493.7,2493.5,0.55]
[1730593384617,1.62819276,2493.7,2493.6,0.29916858]
[1730593384825,1.62819276,2493.7,2493.6,0.55]
[1730593385228,1.62819276,2493.7,2493.3,0.67532632]
[1730593385412,1.62819276,2493.7,2493.5,0.55]
[1730593386113,1.62819276,2493.7,2493.3,0.55]
[1730593386318,1.62819276,2493.7,2493.5,0.55]
[1730593387003,1.62819276,2493.7,2493.2,0.7798]
[1730593387004,1.62819276,2493.7,2493.3,0.55]
[1730593387199,1.62819276,2493.7,2493.5,0.55]
[1730593388058,1.62819276,2493.7,2493.3,0.55]
[1730593388347,1.62819276,2493.7,2493.5,0.55]
[1730593389103,1.62819276,2493.7,2493.3,0.55]
[1730593389323,1.62819276,2493.7,2493.5,0.55]
[1730593390018,1.62819276,2493.7,2493.2,0.7798]
[1730593390019,1.62819276,2493.7,2493.3,0.55]
[1730593390219,1.62819276,2493.7,2493.5,0.55]
[1730593390663,1.62819276,2493.7,2493.3,0.55]
[1730593390822,1.62819276,2493.7,2493.5,0.55]
[1730593391341,1.62819276,2493.7,2493.3,0.55]
[1730593391554,1.62819276,2493.7,2493.5,0.55]
[1730593391709,1.62819276,2493.7,2493.4,0.424591]
[1730593391710,2.40739276,2493.6,2493.3,0.55]
[1730593391907,0.7792,2493.6,2493.4,0.29930338]
[1730593392143,4.01049,2493.5,2493.1,1.35248349]
[1730593392306,1.62819276,2493.2,2493.1,1.35248349]
[1730593392518,1.62819276,2493.2,2493.1,1.47782657]
[1730593392706,2.40739276,2493.4,2493.1,1.77715844]
[1730593393001,2.40739276,2493.4,2493.2,0.42467495]
[1730593393002,3.25965026,2493.4,2493.2,0.42467495]
[1730593393206,3.25965026,2493.4,2493.3,0.29933187]
[1730593393419,3.25965026,2493.4,2493.1,1.35248349]
[1730593393623,3.25965026,2493.4,2493.3,0.29926648]
[1730593393818,3.25965026,2493.4,2493.2,0.42462248]
[1730593394108,3.25965026,2493.4,2493.3,0.29927771]
[1730593394720,3.25965026,2493.4,2493.2,0.12534487]
[1730593395047,3.25965026,2493.4,2493.3,0.29923918]
[1730593395622,3.25965026,2493.4,2493.3,0.2991902]
[1730593396146,3.25965026,2493.4,2493.3,0.29918334]
[1730593397149,3.25965026,2493.4,2493.1,1.35248349]
[1730593397377,2.40739276,2493.4,2493.2,0.4245131]
[1730593397519,2.40739276,2493.4,2493.1,1.35248349]
[1730593397720,2.40739276,2493.4,2493.2,0.4244943]
[1730593397959,2.40739276,2493.4,2493.3,0.29915028]
[1730593398244,2.40739276,2493.4,2493.3,0.2991444]
[1730593398454,2.40739276,2493.4,2493.1,1.35248349]
[1730593398629,2.40739276,2493.4,2493.2,0.42448162]
[1730593398813,2.40739276,2493.4,2493.2,0.12534314]
[1730593399333,2.40739276,2493.4,2493.1,1.35248349]
[1730593399653,2.40739276,2493.4,2493.2,0.29913854]
[1730593399814,2.40739276,2493.4,2493.1,1.35248349]
[1730593400151,2.40739276,2493.4,2493.2,0.42447158]
[1730593400460,2.40739276,2493.4,2493.1,1.35248349]
[1730593400757,2.40739276,2493.4,2493.2,0.42444759]
[1730593400912,2.40739276,2493.4,2493.2,0.12534384]
[1730593401123,2.40739276,2493.4,2493.2,0.12534359]
[1730593403827,2.40739276,2493.4,2493.1,1.35248349]
[1730593404027,2.40739276,2493.4,2493.2,0.12534276]
[1730593404228,2.40739276,2493.4,2493.2,0.12534331]
[1730593404435,2.40739276,2493.4,2493.1,1.35248349]
[1730593404663,2.40739276,2493.4,2493.2,0.42441282]
[1730593404927,2.40739276,2493.4,2493.2,0.12534383]
[1730593405741,2.40739276,2493.4,2493.1,1.35248349]
[1730593405942,2.40739276,2493.4,2493.2,0.42440642]
[1730593406143,2.40739276,2493.4,2493.1,1.35248349]
[1730593406362,2.40739276,2493.4,2493.2,0.2990628]
[1730593406673,2.40739276,2493.4,2493.1,1.35248349]
[1730593406835,2.40739276,2493.4,2493.2,0.2990615]
[1730593407036,2.40739276,2493.4,2493.1,1.35248349]
[1730593407344,2.40739276,2493.4,2493.2,0.29906051]
[1730593407675,2.40739276,2493.4,2493.1,1.35248349]
[1730593407884,2.40739276,2493.4,2493.2,0.2990579]
[1730593408039,2.40739276,2493.4,2493.1,1.35248349]
[1730593408387,2.40739276,2493.4,2493.2,0.2990569]
[1730593408540,2.40739276,2493.4,2493.1,1.35248349]
[1730593408769,2.40739276,2493.4,2493.2,0.29905229]
[1730593408967,2.40739276,2493.4,2493.1,1.35248349]
[1730593409195,2.40739276,2493.4,2493.2,0.29905562]
[1730593409406,2.40739276,2493.4,2493.1,1.35248349]
[1730593409569,2.40739276,2493.4,2493.2,0.29905024]
[1730593409769,2.40739276,2493.4,2493.1,1.35248349]
[1730593409980,2.40739276,2493.4,2493.2,0.29904861]
[1730593410183,2.40739276,2493.4,2493.1,1.35248349]
[1730593410464,2.40739276,2493.4,2493.2,0.29903843]
[1730593410671,2.40739276,2493.4,2493.1,1.35248349]
[1730593410914,2.40739276,2493.4,2493.2,0.29902798]
[1730593411295,2.40739276,2493.4,2493.1,1.35248349]
[1730593411617,2.40739276,2493.4,2493.2,0.2990651]
[1730593411810,2.40739276,2493.4,2493.1,1.47782827]
[1730593411969,2.40739276,2493.4,2493.2,0.29906813]
[1730593412170,2.40739276,2493.4,2493.1,1.35248349]
[1730593412371,2.40739276,2493.4,2493.2,0.29906777]
[1730593412584,2.40739276,2493.4,2493.1,1.47782802]
[1730593412789,2.40739276,2493.4,2493.2,0.29906378]
[1730593412967,2.40739276,2493.4,2493.1,1.35248349]
[1730593413163,2.40739276,2493.4,2493.2,0.29906626]
[1730593413368,2.40739276,2493.4,2493.1,1.35248349]
[1730593413613,2.40739276,2493.4,2493.2,0.29906941]
[1730593413793,2.40739276,2493.4,2493.1,1.47782802]
[1730593413973,2.40739276,2493.4,2493.2,0.29907414]
[1730593414164,2.40739276,2493.4,2493.1,1.35248349]
[1730593414369,2.40739276,2493.4,2493.2,0.29906968]
[1730593414684,2.40739276,2493.4,2493.1,1.47782802]
[1730593414685,2.40739276,2493.4,2493.1,1.35248349]
[1730593415209,2.40739276,2493.4,2493.2,0.29910914]
[1730593415411,2.40739276,2493.4,2493.1,1.47782973]
[1730593415715,2.40739276,2493.4,2493.2,0.29910397]
[1730593415894,2.40739276,2493.4,2493.1,1.35248349]
[1730593416095,2.40739276,2493.4,2493.2,0.29910157]
[1730593416309,2.40739276,2493.4,2493.1,1.35248349]
[1730593416608,2.40739276,2493.4,2493.2,0.29911486]
[1730593416920,2.40739276,2493.4,2493.1,1.35248349]
[1730593417078,2.40739276,2493.4,2493.2,0.29911276]
[1730593417278,2.40739276,2493.4,2493.1,1.35248349]
[1730593417478,2.40739276,2493.4,2493.2,0.29911188]
[1730593417679,2.40739276,2493.4,2493.1,1.35248349]
[1730593417891,2.40739276,2493.4,2493.2,0.29911492]
[1730593418179,2.40739276,2493.4,2493.1,1.35248349]
[1730593418374,2.40739276,2493.4,2493.2,0.299115]
[1730593418580,2.40739276,2493.4,2493.1,1.35248349]
[1730593418818,6.41797276,2493.4,2493.2,0.2991161]
[1730593418994,6.41797276,2493.4,2493.1,1.35248349]
[1730593418995,0.7726,2493.3,2493.1,1.35248349]
[1730593419201,6.41169276,2493.2,2493.0,0.12534634]
[1730593419394,6.41186276,2493.1,2493.0,0.29917586]
[1730593419717,4.01139,2492.9,2492.5,0.12534634]
[1730593419877,1.62819276,2492.7,2492.6,0.42465735]
[1730593420280,1.62819276,2492.7,2492.6,0.29931101]
[1730593420820,2.40079276,2492.7,2492.6,0.97465735]
[1730593420976,2.40079276,2492.7,2492.6,0.84931101]
[1730593421173,2.40079276,2492.7,2492.6,0.55]
[1730593421652,2.40079276,2492.7,2492.6,0.84931101]
[1730593421924,2.40079276,2492.7,2492.6,0.84920297]
[1730593422078,2.40079276,2492.7,2492.5,0.42458054]
[1730593422375,2.40079276,2492.7,2492.6,0.29920297]
[1730593422576,2.40079276,2492.7,2492.5,0.55]
[1730593422792,2.40079276,2492.7,2492.5,0.84920297]
[1730593422979,2.40079276,2492.7,2492.1,2.99237797]
[1730593422980,2.40079276,2492.7,2492.3,0.42458054]
[1730593423176,1.62819276,2492.5,2492.4,0.84920297]
[1730593423478,1.62819276,2492.5,2492.3,0.42458054]
[1730593423479,5.64026276,2492.5,2492.3,0.42458054]
[1730593423678,5.64026276,2492.5,2492.2,0.42451584]
[1730593423679,2.40079276,2492.4,2492.2,0.42451584]
[1730593423879,2.40079276,2492.4,2492.3,0.29913827]
[1730593424204,2.40079276,2492.4,2492.1,1.65201094]
[1730593424785,1.62819276,2492.6,2492.2,0.29913827]
[1730593425105,1.62819276,2492.8,2492.5,0.55]
[1730593427121,1.62819276,2493.0,2492.5,0.55]
[1730593427319,5.63943276,2493.0,2492.5,0.55]
[1730593427835,1.62819276,2493.0,2492.5,0.55]
[1730593428321,1.62819276,2492.8,2492.5,0.55]
[1730593429507,8.83933,2493.1,2492.5,0.55]
[1730593429508,1.62819276,2493.0,2492.5,0.55]
[1730593430593,5.63943276,2493.0,2492.5,0.55]
[1730593430792,1.62819276,2492.8,2492.5,0.55]
[1730593433515,1.62819276,2493.0,2492.5,0.55]
[1730593434986,1.62819276,2493.0,2492.7,0.55]
[1730593435651,2.44519276,2493.2,2492.7,0.55]
[1730593436524,1.62819276,2493.0,2492.7,0.55]
[1730593440174,1.62819276,2493.2,2492.8,0.7962]
[1730593440526,1.62819276,2493.2,2492.9,0.55]
[1730593444469,1.62819276,2493.0,2492.9,0.55]
[1730593445662,1.62819276,2493.2,2492.9,0.55]
[1730593450768,1.62819276,2493.4,2493.1,0.55]
[1730593453448,1.62819276,2493.2,2493.1,0.55]
[1730593454351,1.62819276,2493.2,2492.9,0.55]
[1730593458887,1.62819276,2493.0,2492.9,0.55]
[1730593463893,1.62819276,2493.0,2492.7,0.55]
[1730593464488,1.62819276,2493.0,2492.7,0.84930731]
[1730593464996,1.62819276,2492.8,2492.7,0.84930814]
[1730593465221,1.86919204,2492.8,2492.6,0.55]
[1730593465419,1.62819276,2492.8,2492.5,0.97477014]
[1730593465626,1.62819276,2492.8,2492.5,0.67536899]
[1730593466494,1.62819276,2492.8,2492.5,0.55]
[1730593466713,1.62819276,2492.8,2492.5,0.67536974]
[1730593466920,1.62819276,2492.8,2492.5,0.55]
[1730593467091,1.62819276,2492.8,2492.5,0.6753691]
[1730593470340,1.62819276,2492.8,2492.5,0.55]
[1730593470504,1.62819276,2492.8,2492.5,0.67536916]
[1730593475130,1.62819276,2492.8,2492.7,0.55]
[1730593475338,2.40999276,2493.0,2492.7,0.55]
[1730593475508,1.62819276,2493.0,2492.7,1.3805]
[1730593476012,1.62819276,2493.0,2492.7,1.67977999]
[1730593476209,1.62819276,2493.0,2492.7,1.3805]
[1730593476539,1.62819276,2493.0,2492.7,1.67974074]
[1730593476717,1.62819276,2493.0,2492.7,1.3805]
[1730593476919,1.62819276,2493.0,2492.7,1.67974074]
[1730593477116,1.62819276,2493.0,2492.7,1.3805]
[1730593479245,1.62819276,2493.2,2492.7,1.3805]
[1730593479445,1.62819276,2493.2,2492.9,0.55]
[1730593480302,1.62819276,2493.2,2492.8,0.55]
[1730593488072,1.62819276,2493.2,2493.0,0.55]
[1730593493669,1.62819276,2493.2,2492.8,0.84920195]
[1730593493870,1.62819276,2493.0,2492.8,0.55]
[1730593496064,1.62819276,2493.0,2492.8,0.67535495]
[1730593496500,1.62819276,2493.0,2492.8,0.55]
[1730593496680,1.62819276,2493.0,2492.8,0.67535536]
[1730593496882,1.62819276,2493.0,2492.8,0.55]
[1730593498067,1.62819276,2493.0,2492.8,0.67535517]
[1730593498269,1.62819276,2493.0,2492.8,0.55]
[1730593498463,1.62819276,2493.0,2492.8,0.67535582]
[1730593498660,1.62819276,2493.0,2492.8,0.55]
[1730593498862,1.62819276,2493.0,2492.8,0.67535598]
[1730593499690,1.62819276,2493.0,2492.8,0.67535525]
[1730593500067,1.62819276,2493.0,2492.8,0.55]
[1730593500402,1.62819276,2493.0,2492.8,0.67535554]
[1730593500904,1.62819276,2493.0,2492.8,0.55]
[1730593502007,1.62819276,2493.0,2492.8,0.67535653]
[1730593502166,1.62819276,2493.0,2492.9,0.84911867]
[1730593504515,1.62819276,2493.0,2492.9,0.55]
[1730593504880,1.62819276,2493.0,2492.9,0.84911624]
[1730593505086,1.62819276,2493.0,2492.9,0.55]
[1730593505598,1.62819276,2493.0,2492.8,0.67535676]
[1730593505799,1.62819276,2493.0,2492.9,0.84910836]
[1730593505972,1.62819276,2493.0,2492.8,0.55]
[1730593506179,1.62819276,2493.0,2492.8,0.67535903]
[1730593510410,1.62819276,2493.0,2492.8,0.55]
[1730593510725,1.62819276,2493.0,2492.8,0.67535909]
[1730593511813,1.62819276,2493.0,2492.8,0.55]
[1730593512202,1.62819276,2493.0,2492.8,0.67535966]
[1730593512403,1.62819276,2493.0,2492.9,0.84915491]
[1730593512710,1.62819276,2493.0,2492.9,0.55]
[1730593512917,1.62819276,2493.2,2493.0,0.55]
[1730593516624,1.62819276,2493.4,2493.0,0.67534709]
[1730593516920,1.62819276,2493.4,2493.1,0.29909303]
[1730593517125,1.62819276,2493.4,2493.2,0.55]
[1730593517285,1.62819276,2493.4,2493.1,0.55]
[1730593518330,1.62819276,2493.4,2493.0,0.67534832]
[1730593518548,1.62819276,2493.4,2493.2,0.55]
[1730593518852,1.62819276,2493.4,2493.0,0.67534832]
[1730593519213,1.62819276,2493.2,2493.0,0.67534832]
[1730593519413,1.62819276,2493.2,2493.0,0.67534834]
[1730593519635,1.62819276,2493.2,2493.1,0.55]
[1730593519911,1.62819276,2493.2,2493.1,0.84913919]
[1730593523152,1.62819276,2493.2,2493.1,0.8492649]
[1730593523728,1.62819276,2493.2,2493.1,1.6272649]
[1730593524537,1.62819276,2493.2,2493.1,1.75261284]
[1730593525374,1.62819276,2493.2,2493.1,1.6272649]
[1730593525741,1.62819276,2493.2,2493.1,1.75261284]
[1730593526073,1.62819276,2493.4,2493.2,0.55]
[1730593526272,1.62819276,2493.4,2493.3,0.2992649]
[1730593526463,1.62819276,2493.4,2493.3,0.84913612]
[1730593526980,1.62819276,2493.4,2493.3,0.9744712]
[1730593527139,1.62819276,2493.4,2493.3,0.84913612]
[1730593529967,1.62819276,2493.4,2493.3,0.84898086]
[1730593530482,1.62819276,2493.4,2493.2,0.55]
[1730593530785,1.62819276,2493.4,2493.3,0.8489372]
[1730593530940,1.62819276,2493.4,2493.3,0.55]
[1730593531144,1.62819276,2493.4,2493.3,0.8489372]
[1730593531371,1.62819276,2493.4,2493.2,0.84891447]
[1730593531568,1.62819276,2493.4,2493.2,0.55]
[1730593532479,1.62819276,2493.8,2493.5,0.55]
[1730593533051,0.7509,2493.9,2493.5,0.55]
[1730593533052,1.62819276,2493.6,2493.5,0.55]
[1730593540073,1.62819276,2493.8,2493.6,0.55]
[1730593549776,2.37909276,2494.2,2493.7,0.7844]
[1730593550071,2.37909276,2494.2,2493.8,0.55]
[1730593551239,1.62819276,2494.2,2493.8,0.55]
[1730593557569,1.62819276,2494.0,2493.8,0.55]
[1730593564366,0.7656,2493.9,2493.6,0.55]
[1730593564679,1.62819276,2493.8,2493.6,0.55]
[1730593566597,0.7656,2493.9,2493.6,0.55]
[1730593566905,1.62819276,2494.0,2493.6,0.55]
[1730593568800,1.62819276,2493.8,2493.6,0.55]
[1730593572199,2.39379276,2493.8,2493.6,0.55]
[1730593572719,2.39379276,2493.8,2493.5,0.84829177]
[1730593574415,2.39379276,2493.8,2493.5,0.55]
[1730593575380,2.39379276,2493.8,2493.7,0.55]
[1730593576320,2.42989276,2494.0,2493.7,0.55]
[1730593577624,1.62819276,2493.8,2493.7,0.55]
[1730593578049,2.42989276,2493.8,2493.7,0.55]
[1730593580012,1.62819276,2493.8,2493.7,0.55]
[1730593584259,1.62819276,2493.8,2493.6,0.55]
[1730593587472,1.62334576,2493.8,2493.6,0.55]
[1730593600607,2.10181999,2494.1,2493.7,0.7607]
[1730593600800,2.10181999,2494.1,2493.8,0.55]
[1730593601089,1.62819276,2494.0,2493.8,0.55]
[1730593607372,2.44229276,2494.0,2493.8,0.55]
[1730593609918,1.62819276,2493.9,2493.8,0.55]
[1730593615425,1.62819276,2493.9,2493.6,0.55]
[1730593615631,1.62819276,2493.9,2493.5,0.55]
[1730593615921,1.62819276,2493.9,2493.5,1.11764803]
[1730593616692,1.62819276,2493.9,2493.5,0.55]
[1730593618817,1.62819276,2493.9,2493.7,0.55]
[1730593619493,1.62819276,2493.9,2493.5,0.55]
[1730593620325,1.62819276,2493.7,2493.4,0.55]
[1730593620704,1.62819276,2493.7,2493.6,0.55]
[1730593621014,1.62819276,2493.7,2493.4,0.55]
[1730593621216,1.62819276,2493.7,2493.6,0.55]
[1730593621627,1.62819276,2493.7,2493.5,0.55]
[1730593623422,1.62819276,2493.7,2493.4,0.55]
[1730593625129,1.62819276,2493.7,2493.4,0.67532524]
[1730593625342,1.62819276,2493.7,2493.4,0.55]
[1730593626699,1.62819276,2493.7,2493.4,0.67532545]
[1730593627010,1.62819276,2493.7,2493.4,0.55]
[1730593628045,1.62705347,2493.7,2493.4,0.55]
[1730593628251,1.62705347,2493.7,2493.6,0.55]
[1730593628842,1.62705347,2493.7,2493.5,0.55]
[1730593631942,1.62705347,2493.7,2493.4,0.55]
[1730593633274,0.8244,2493.6,2493.4,0.55]
[1730593633974,0.8244,2493.6,2493.2,0.55]
[1730593633975,1.62819276,2493.5,2493.2,0.55]
[1730593634172,1.62819276,2493.5,2493.4,0.55]
[1730593634585,1.62819276,2493.5,2493.0,0.8073]
[1730593634586,1.62819276,2493.5,2493.2,0.55]
[1730593634738,1.62819276,2493.5,2493.2,0.67533513]
[1730593634934,1.62819276,2493.5,2493.1,0.55]
[1730593635153,1.62819276,2493.5,2493.2,0.1253355]
[1730593635349,1.62819276,2493.5,2493.3,0.55]
[1730593635778,1.62819276,2493.5,2493.2,0.6753355]
[1730593635987,1.62819276,2493.5,2493.4,0.55]
[1730593636373,1.62819276,2493.5,2493.2,0.55]
[1730593636552,1.62819276,2493.5,2493.1,0.55]
[1730593636751,1.62819276,2493.5,2493.3,0.55]
[1730593637368,1.62819276,2493.5,2493.2,0.55]
[1730593638389,1.62819276,2493.5,2493.1,0.12533577]
[1730593638390,1.62819276,2493.5,2493.1,0.67533591]
[1730593638571,1.62819276,2493.5,2493.2,0.29907092]
[1730593638776,1.62819276,2493.5,2493.1,0.67533591]
[1730593639065,1.62819276,2493.5,2493.3,0.55]
[1730593639278,1.62819276,2493.5,2493.2,0.84905314]
[1730593639683,1.62819276,2493.5,2493.1,0.84909519]
[1730593639880,2.40669276,2493.3,2493.1,0.84909519]
[1730593640083,2.40669276,2493.3,2493.1,0.84909643]
[1730593640387,2.40669276,2493.3,2493.1,0.84905925]
[1730593640771,2.40669276,2493.3,2493.1,0.55]
[1730593641079,2.40669276,2493.3,2493.1,0.8490512]
[1730593642086,2.40669276,2493.3,2493.1,0.84905769]
[1730593642775,2.40669276,2493.5,2493.1,2.0330977]
[1730593643072,2.40669276,2493.7,2493.3,0.55]
[1730593644020,2.40669276,2493.9,2493.5,0.55]
[1730593645721,1.62819276,2493.7,2493.5,0.55]
[1730593648299,1.62819276,2493.9,2493.5,0.55]
[1730593648821,1.62819276,2493.9,2493.6,0.7866]
[1730593649035,1.62819276,2493.9,2493.7,0.55]
[1730593653274,0.7785,2494.1,2493.7,0.55]
[1730593653275,1.62819276,2494.1,2493.7,0.55]
[1730593653704,1.62819276,2494.1,2493.9,0.55]
[1730593655105,2.87963884,2494.3,2493.9,0.55]
[1730593655106,3.7293316,2494.3,2493.9,0.55]
[1730593655309,1.62819276,2494.3,2493.9,0.55]
[1730593657444,3.7293316,2494.3,2493.9,0.55]
[1730593657603,1.62819276,2494.3,2493.9,0.55]
[1730593659130,3.72878895,2494.3,2493.9,0.55]
[1730593659445,1.62819276,2494.1,2493.9,0.55]
[1730593660658,1.62819276,2494.1,2493.5,1.08536917]
[1730593660864,1.62819276,2493.9,2493.5,0.7866]
[1730593661144,1.62819276,2493.9,2493.5,1.08540472]
[1730593661349,1.62819276,2493.9,2493.5,0.7866]
[1730593661515,1.62819276,2493.9,2493.5,1.08540472]
[1730593661712,1.62819276,2493.9,2493.5,0.7866]
[1730593661966,1.62819276,2493.9,2493.6,0.55]
[1730593663251,1.62819276,2494.1,2493.6,0.55]
[1730593663613,1.62819276,2494.1,2493.8,0.55]
[1730593668157,1.62819276,2493.9,2493.8,0.55]
[1730593668872,1.62819276,2493.9,2493.6,0.55]
[1730593684297,1.62819276,2494.1,2493.8,0.55]
[1730593688181,1.62819276,2494.1,2493.8,0.84895955]
[1730593688601,1.62819276,2494.1,2493.8,0.55]
[1730593689125,1.62819276,2494.1,2493.8,0.8489542]
[1730593689320,1.62819276,2494.1,2493.8,0.55]
[1730593720766,1.62819276,2494.1,2493.7,0.7855]
[1730593720767,0.8037,2494.0,2493.6,0.55]
[1730593720925,1.62819276,2493.9,2493.7,0.29910384]
[1730593721126,1.62819276,2493.9,2493.5,0.12531103]
[1730593721437,1.62819276,2493.9,2493.6,0.299134]
[1730593721639,1.62819276,2493.9,2493.5,0.12531239]
[1730593721827,1.62819276,2493.9,2493.6,0.29915206]
[1730593722028,1.62819276,2493.9,2493.6,0.55]
[1730593722237,1.62819276,2493.9,2493.6,0.6753123]
[1730593722431,1.62819276,2493.9,2493.6,0.55]
[1730593722637,1.62819276,2493.9,2493.8,0.55]
[1730593722840,0.8037,2494.0,2493.8,0.55]
[1730593723074,0.8037,2494.0,2493.6,0.7722]
[1730593723075,0.8037,2494.0,2493.7,0.84913109]
[1730593723435,0.8037,2494.0,2493.7,0.55]
[1730593728290,0.8037,2494.0,2493.9,0.55]
[1730593728581,0.8037,2494.0,2493.7,0.55]
[1730593728787,0.8037,2494.0,2493.8,0.29923496]
[1730593729081,0.8037,2494.0,2493.9,0.55]
[1730593729289,0.8037,2494.0,2493.7,0.67530716]
[1730593729463,0.8037,2494.0,2493.9,0.55]
[1730593729987,0.8037,2494.0,2493.7,0.55]
[1730593730190,0.8037,2494.0,2493.9,0.55]
[1730593730556,0.8037,2494.0,2493.7,0.67530677]
[1730593730762,0.8037,2494.0,2493.9,0.55]
[1730593731285,0.8037,2494.0,2493.8,0.55]
[1730593731456,0.8037,2494.0,2493.7,0.55]
[1730593731657,0.8037,2494.0,2493.7,0.98222]
[1730593731868,0.8037,2494.0,2493.9,0.55]
[1730593732366,0.8037,2494.0,2493.8,0.55]
[1730593732875,0.8037,2494.0,2493.7,0.55]
[1730593733191,0.8037,2494.0,2493.9,0.55]
[1730593733684,0.8037,2494.0,2493.7,0.67530673]
[1730593733891,1.62819276,2493.9,2493.5,0.55]
[1730593734053,1.62819276,2493.9,2493.6,0.42461946]
[1730593734255,1.62819276,2493.9,2493.7,0.84930684]
[1730593734471,1.62819276,2493.9,2493.5,0.51716996]
[1730593734472,1.62819276,2493.9,2493.6,0.55]
[1730593734730,1.62819276,2493.9,2493.8,0.55]
[1730593735067,1.62819276,2493.9,2493.6,0.67530975]
[1730593735400,1.62819276,2493.9,2493.8,0.55]
[1730593735814,1.62819276,2493.9,2493.6,0.67530968]
[1730593735970,1.62819276,2493.9,2493.8,0.55]
[1730593736385,1.62819276,2493.9,2493.7,0.55]
[1730593736767,1.62819276,2493.9,2493.5,0.55]
[1730593736968,1.62819276,2493.9,2493.7,0.55]
[1730593737191,1.62819276,2493.9,2493.5,0.55]
[1730593737397,1.62819276,2493.9,2493.7,0.55]
[1730593737785,1.62819276,2493.9,2493.6,0.55]
[1730593737988,1.62819276,2493.9,2493.6,0.99617118]
[1730593738182,1.62819276,2493.9,2493.5,0.55]
[1730593738412,1.62819276,2493.9,2493.7,0.55]
[1730593738770,1.62819276,2493.9,2493.6,0.55]
[1730593738972,1.62819276,2493.9,2493.5,0.12531091]
[1730593738973,1.62819276,2493.9,2493.5,0.55]
[1730593739170,1.62819276,2493.9,2493.7,0.55]
[1730593739600,1.62819276,2493.9,2493.5,0.67531074]
[1730593739833,1.62819276,2493.9,2493.7,0.55]
[1730593740328,1.62819276,2493.9,2493.5,0.67531071]
[1730593740506,1.62819276,2493.9,2493.7,0.55]
[1730593740711,1.62819276,2493.9,2493.5,0.55]
[1730593740905,1.62819276,2493.9,2493.7,0.55]
[1730593741390,1.62819276,2493.9,2493.4,0.7864]
[1730593741391,1.62819276,2493.9,2493.5,0.67531081]